bitfinex-derivatives/quotes_SOLF0:USTF0_20241016
["timestamp","ask_amount","ask_price","bid_price","bid_amount"]
[1729060297650,8.4147,153.63,153.54,5.16]
[1729060297846,8.4147,153.63,153.55,14.08]
[1729060297847,3.2547,153.63,153.55,14.08]
[1729060298050,3.2545,153.64,153.59,3.2554]
[1729060298846,3.2547,153.63,153.59,3.2554]
[1729060299353,195.83092552,153.65,153.59,3.2554]
[1729060299544,195.83092552,153.65,153.58,3.2557]
[1729060300155,14.08,153.64,153.56,4.6628]
[1729060300345,14.08,153.62,153.56,3.2561]
[1729060300650,3.2555,153.6,153.56,3.2561]
[1729060302048,3.255,153.62,153.58,3.2557]
[1729060302255,14.08,153.64,153.55,14.08]
[1729060302454,190.67092552,153.65,153.57,14.08]
[1729060302751,190.67092552,153.65,153.57,19.24]
[1729060302947,3.2544,153.65,153.57,19.24]
[1729060303845,70.4,153.69,153.59,14.08]
[1729060304047,5.16,153.68,153.6,2.7659]
[1729060304345,3.254,153.67,153.62,3.2548]
[1729060304539,14.08,153.69,153.61,5.16]
[1729060304867,3.2536,153.68,153.64,3.2543]
[1729060305151,1.0,153.7,153.63,14.08]
[1729060305551,1.0,153.7,153.67,3.2538]
[1729060306055,1.0,153.7,153.68,3.2535]
[1729060306241,1.0,153.7,153.65,19.24]
[1729060306849,1.0,153.7,153.67,3.2537]
[1729060307156,1.0,153.7,153.67,14.08]
[1729060307357,1.0,153.7,153.68,3.2535]
[1729060307953,1.0,153.7,153.68,5.16]
[1729060308254,1.0,153.7,153.66,1.4072]
[1729060308451,1.0,153.7,153.65,5.16]
[1729060309048,1.0,153.7,153.66,14.08]
[1729060309757,1.0,153.7,153.69,3.2534]
[1729060310159,1.0,153.74,153.69,3.2534]
[1729060310160,1.0,153.74,153.69,5.16]
[1729060310458,1.0,153.74,153.71,3.2528]
[1729060310755,1.0,153.74,153.7,14.08]
[1729060310952,1.0,153.74,153.7,15.4629]
[1729060311547,1.0,153.74,153.71,3.2529]
[1729060312762,1.0,153.74,153.72,3.2527]
[1729060312963,1.0,153.74,153.7,15.4629]
[1729060313352,1.0,153.74,153.72,3.2527]
[1729060313556,1.0,153.74,153.7,15.4629]
[1729060313765,1.0,153.74,153.72,14.08]
[1729060313963,1.0,153.79,153.73,8.3123263]
[1729060314258,1.0,153.79,153.75,14.08]
[1729060314453,1.0,153.79,153.73,14.08]
[1729060314853,1.0,153.79,153.74,5.14]
[1729060315057,3.2518,153.77,153.74,5.14]
[1729060316454,18.37777998,153.79,153.7,2.7729]
[1729060316657,14.08,153.77,153.67,70.28]
[1729060316961,14.08,153.75,153.68,5.14]
[1729060317359,3.26460377,153.76,153.68,5.14]
[1729060317661,14.08,153.77,153.68,5.14]
[1729060317854,3.2523,153.75,153.7,3.2531]
[1729060318054,14.08,153.77,153.7,3.2531]
[1729060318256,14.08,153.77,153.68,5.14]
[1729060318462,14.08,153.75,153.68,5.14]
[1729060318857,1.4161,153.74,153.68,5.14]
[1729060319056,3.2534,153.69,153.68,5.14]
[1729060319255,3.2534,153.69,153.64,17.3343]
[1729060319456,3.2535,153.69,153.65,8.3943]
[1729060320165,14.08,153.73,153.65,5.14]
[1729060320352,3.2538,153.68,153.65,5.14]
[1729060320667,3.31273772,153.7,153.6,15.5131]
[1729060320867,14.08,153.69,153.61,1.1960055]
[1729060321073,14.08,153.64,153.56,4.1987]
[1729060321556,19.3,153.66,153.56,18.2787]
[1729060321760,19.3,153.66,153.57,1.1964068]
[1729060321960,1.4511,153.65,153.56,18.2787]
[1729060322768,3.2549,153.63,153.58,3.2557]
[1729060322968,1.4511,153.65,153.56,18.2787]
[1729060323470,15.5311,153.65,153.56,18.2787]
[1729060323771,1.4511,153.65,153.56,4.1987]
[1729060324360,3.2547,153.64,153.58,3.2557]
[1729060325064,1.4511,153.65,153.58,3.2557]
[1729060325366,3.2548,153.63,153.58,3.2557]
[1729060327163,3.2548,153.63,153.56,4.1987]
[1729060327164,1.3181,153.69,153.59,5.24]
[1729060327369,27.74,153.7,153.59,5.24]
[1729060327573,8.0722,153.73,153.62,22.5]
[1729060327767,8.0722,153.73,153.63,5.24]
[1729060328273,3.2532,153.71,153.66,3.2539]
[1729060328871,3.2529,153.72,153.63,5.24]
[1729060329071,3.2529,153.72,153.64,1.4389]
[1729060329578,3.2529,153.72,153.67,3.2538]
[1729060329965,3.2535,153.69,153.64,1.4389]
[1729060330167,2.8322,153.73,153.63,5.24]
[1729060330168,25.3322,153.73,153.63,5.24]
[1729060330374,5.24,153.71,153.63,5.24]
[1729060330969,2.8322,153.73,153.63,5.24]
[1729060331175,3.2528,153.72,153.67,3.2538]
[1729060331370,6.6581,153.73,153.65,22.5]
[1729060331771,1.4181,153.73,153.65,22.5]
[1729060331975,1.4181,153.73,153.68,3.2536]
[1729060332974,3.2528,153.72,153.68,3.2536]
[1729060333373,1.4181,153.73,153.69,3.2533]
[1729060333879,4.6708,153.73,153.69,3.2533]
[1729060334076,4.6708,153.73,153.64,2.7982]
[1729060334077,1.4181,153.73,153.64,2.7982]
[1729060334380,3.2534,153.7,153.65,5.22]
[1729060335980,3.2534,153.7,153.65,8.4741]
[1729060336183,3.2534,153.7,153.65,5.22]
[1729060336879,1.4181,153.73,153.64,1.4223]
[1729060337077,1.4181,153.73,153.62,5.22]
[1729060337078,22.5,153.71,153.62,5.22]
[1729060337280,1.3111,153.7,153.62,5.22]
[1729060337581,3.2542,153.66,153.62,5.22]
[1729060337777,1.3111,153.7,153.62,5.22]
[1729060337981,5.22,153.72,153.62,5.22]
[1729060338179,3.2533,153.7,153.65,3.2541]
[1729060338877,3.2534,153.69,153.65,3.2541]
[1729060339583,1.4181,153.73,153.66,5.22]
[1729060339783,123.16805292,153.78,153.68,22.5]
[1729060339985,8.4717,153.77,153.72,3.2527]
[1729060340277,1.371,153.78,153.7,5.22]
[1729060340591,1.371,153.78,153.7,27.72]
[1729060340772,4.6227,153.78,153.7,27.72]
[1729060341080,3.2517,153.78,153.7,27.72]
[1729060341380,1.0,153.79,153.77,3.2517]
[1729060341985,1.0,153.79,153.76,3.2519]
[1729060342376,1.0,153.79,153.75,5.22]
[1729060342877,1.0,153.79,153.69,5.22]
[1729060342878,23.5,153.79,153.69,5.22]
[1729060343071,26.67883164,153.79,153.69,5.22]
[1729060343273,3.2519,153.76,153.69,5.22]
[1729060343579,26.67883164,153.79,153.68,8.4736]
[1729060343779,14.06,153.76,153.68,5.22]
[1729060343986,3.2525,153.74,153.69,3.2534]
[1729060344987,3.2525,153.74,153.68,5.22]
[1729060345280,3.2525,153.74,153.7,3.2531]
[1729060345481,3.2519,153.77,153.68,19.28]
[1729060345689,3.2519,153.77,153.72,3.2526]
[1729060345882,1.0,153.79,153.72,8.4726]
[1729060346084,4.28237114,153.79,153.72,8.4726]
[1729060346484,3.2517,153.77,153.72,8.4726]
[1729060346787,4.28237114,153.79,153.72,8.4726]
[1729060347185,26.77237114,153.79,153.7,5.22]
[1729060348089,26.77237114,153.79,153.71,3.2529]
[1729060348387,26.77237114,153.79,153.7,5.22]
[1729060348690,4.28237114,153.79,153.73,3.2524]
[1729060348876,1.0,153.79,153.7,27.71]
[1729060349889,3.2515,153.78,153.7,27.71]
[1729060350704,3.2515,153.78,153.73,3.2524]
[1729060351487,4.30851346,153.79,153.68,22.49]
[1729060351683,1.0,153.79,153.71,5.36]
[1729060351885,1.0,153.79,153.68,22.49]
[1729060352084,26.80371757,153.79,153.67,2.8583]
[1729060352295,23.49,153.79,153.68,5.36]
[1729060352594,3.2524,153.74,153.69,3.2532]
[1729060353595,26.68369776,153.79,153.71,3.2529]
[1729060353596,3.2521,153.76,153.71,3.2529]
[1729060353995,1.0,153.79,153.72,5.36]
[1729060354303,3.2517,153.78,153.73,3.2524]
[1729060354694,3.2517,153.78,153.72,5.36]
[1729060355490,3.2517,153.78,153.74,3.2523]
[1729060357600,1.0,153.79,153.72,5.36]
[1729060357805,1.0,153.79,153.73,1.4354]
[1729060358189,1.0,153.79,153.74,2.7446]
[1729060358900,1.0,153.79,153.77,3.2517]
[1729060362006,1.0,153.79,153.76,5.36]
[1729060362300,1.0,153.83,153.77,22.49]
[1729060362602,4.2506,153.83,153.78,3.2514]
[1729060362794,4.2506,153.83,153.76,5.36]
[1729060363194,1.0,153.83,153.81,3.2507]
[1729060363398,1.0,153.83,153.81,8.6107]
[1729060364800,1.0,153.83,153.81,5.36]
[1729060365804,1.0,153.83,153.81,8.6109]
[1729060366616,1.0,153.87,153.82,22.49]
[1729060366808,1.0,153.87,153.82,23.9087]
[1729060366999,1.0,153.87,153.82,25.2801]
[1729060367306,1.0,153.87,153.83,5.36]
[1729060367698,1.0,153.87,153.85,3.2498]
[1729060368104,1.0,153.87,153.82,2.7901]
[1729060368303,1.0,153.87,153.83,5.36]
[1729060368995,4.2498,153.87,153.83,8.6104]
[1729060370196,4.2498,153.87,153.84,5.36]
[1729060370897,1.0,153.87,153.84,5.36]
[1729060374012,1.0,153.87,153.83,3.2504]
[1729060374213,1.0,153.87,153.84,5.36]
[1729060376118,3.25,153.86,153.84,5.36]
[1729060378510,1.0,153.87,153.78,1.45]
[1729060378711,1.0,153.87,153.78,14.03]
[1729060379015,1.0,153.87,153.79,8.6112]
[1729060379212,15.03,153.87,153.8,5.36]
[1729060379812,3.2504,153.84,153.8,5.36]
[1729060380207,14.03,153.84,153.76,15.3508]
[1729060380413,3.2511,153.81,153.77,5.36]
[1729060380721,14.03,153.83,153.76,5.3]
[1729060380910,3.2512,153.8,153.76,5.3]
[1729060381921,3.2506,153.83,153.78,3.2513]
[1729060382112,1.0,153.87,153.81,14.03]
[1729060382303,1.0,153.87,153.83,14.03]
[1729060382709,1.0,153.87,153.85,14.03]
[1729060383020,1.0,153.87,153.86,5.3]
[1729060383519,1.0,153.87,153.86,8.5498]
[1729060384807,1.0,153.92,153.88,3.2492]
[1729060385321,3.2489,153.91,153.86,6.6326]
[1729060385520,3.2489,153.91,153.86,4.5823]
[1729060385817,3.2489,153.91,153.87,5.3]
[1729060386614,3.2493,153.89,153.86,5.3]
[1729060387217,3.249,153.9,153.86,5.3]
[1729060387813,3.249,153.9,153.85,8.5499]
[1729060388019,3.249,153.9,153.85,3.2499]
[1729060388214,3.249,153.9,153.84,5.3]
[1729060388215,3.2496,153.87,153.82,23.8026]
[1729060388413,3.2496,153.87,153.84,5.3]
[1729060388915,1.3764,153.9,153.84,5.3]
[1729060390524,3.2493,153.89,153.85,3.2499]
[1729060390707,1.3764,153.9,153.84,5.3]
[1729060390913,3.2494,153.88,153.83,5.3]
[1729060391112,1.3764,153.9,153.83,5.3]
[1729060391721,3.2495,153.88,153.84,3.2501]
[1729060391923,1.3764,153.9,153.83,27.77]
[1729060392220,1.3764,153.9,153.83,22.47]
[1729060392519,1.3764,153.9,153.83,3.2503]
[1729060392722,1.3764,153.9,153.83,8.5503]
[1729060393126,3.2497,153.87,153.83,8.5503]
[1729060394722,1.3764,153.9,153.83,8.5503]
[1729060394922,6.6764,153.9,153.79,1.3787]
[1729060395122,22.47,153.89,153.79,5.3]
[1729060395329,22.47,153.86,153.77,5.3]
[1729060395624,5.3,153.85,153.76,5.3]
[1729060395925,3.2519,153.77,153.74,5.3]
[1729060396221,23.7944,153.84,153.74,5.3]
[1729060396421,1.4152,153.83,153.74,5.3]
[1729060396820,3.2511,153.8,153.76,3.2518]
[1729060397425,5.3,153.81,153.7,23.8657]
[1729060397636,22.47,153.78,153.69,5.3]
[1729060397924,3.2529,153.72,153.68,5.3]
[1729060398112,3.28997853,153.75,153.68,5.3]
[1729060398318,6.6244,153.77,153.65,22.47]
[1729060398319,1.4148,153.76,153.65,22.47]
[1729060398518,3.2526,153.73,153.68,3.2535]
[1729060399128,1.4148,153.76,153.66,5.3]
[1729060399430,1.4148,153.76,153.67,22.47]
[1729060400526,3.2522,153.75,153.7,3.2532]
[1729060401126,3.2519,153.77,153.72,3.2527]
[1729060401327,1.3132,153.8,153.72,3.2527]
[1729060401634,1.3132,153.8,153.7,27.77]
[1729060401831,5.3,153.81,153.72,22.47]
[1729060402329,2.7916,153.83,153.75,22.47]
[1729060402529,2.7916,153.83,153.75,27.77]
[1729060403029,3.2508,153.82,153.77,3.2517]
[1729060404726,3.2514,153.79,153.75,5.3]
[1729060404928,2.7916,153.83,153.75,5.3]
[1729060405226,3.2513,153.8,153.76,3.2519]
[1729060405426,3.2513,153.8,153.73,5.3]
[1729060406431,3.2508,153.82,153.75,22.47]
[1729060406628,2.7916,153.83,153.75,22.47]
[1729060406926,3.2507,153.82,153.77,3.2517]
[1729060408430,2.7916,153.83,153.77,3.2517]
[1729060408632,3.2509,153.81,153.77,3.2517]
[1729060408830,5.3,153.86,153.77,5.3]
[1729060409129,3.2502,153.84,153.77,27.77]
[1729060409329,9.5239,153.89,153.83,3.2503]
[1729060409535,8.1061,153.89,153.83,3.2503]
[1729060409734,3.2498,153.86,153.81,5.3]
[1729060409935,3.2498,153.86,153.82,3.2506]
[1729060410241,8.1061,153.89,153.81,5.3]
[1729060410535,22.47,153.88,153.78,8.6313]
[1729060411036,22.47,153.88,153.78,5.38]
[1729060411230,22.47,153.86,153.78,5.38]
[1729060411535,8.65448302,153.85,153.78,5.38]
[1729060412039,3.2508,153.82,153.78,5.38]
[1729060413234,25.2761,153.89,153.78,5.38]
[1729060413434,5.38,153.88,153.78,5.38]
[1729060413638,3.2502,153.85,153.81,3.2509]
[1729060413830,3.2502,153.85,153.78,5.38]
[1729060414132,3.20684946,153.87,153.77,22.47]
[1729060414133,3.2509,153.81,153.77,8.6316]
[1729060414331,25.67684946,153.87,153.76,5.38]
[1729060414332,6.6932,153.84,153.76,5.38]
[1729060415033,3.2511,153.81,153.76,8.6317]
[1729060415932,3.2511,153.8,153.77,3.2517]
[1729060417833,3.2511,153.8,153.76,5.38]
[1729060418029,3.2511,153.8,153.76,8.6319]
[1729060419428,5.38,153.84,153.76,5.38]
[1729060419940,5.38,153.84,153.77,3.2515]
[1729060419941,3.251,153.81,153.77,3.2515]
[1729060420239,5.38,153.84,153.76,5.38]
[1729060420541,5.38,153.84,153.76,8.6318]
[1729060420542,3.2507,153.82,153.76,8.6318]
[1729060420743,5.38,153.84,153.76,8.6318]
[1729060421748,3.251,153.81,153.77,3.2517]
[1729060421946,5.38,153.84,153.77,3.2517]
[1729060422135,3.2508,153.82,153.78,3.2513]
[1729060422436,3.2508,153.82,153.76,5.38]
[1729060423243,3.2508,153.82,153.78,3.2514]
[1729060423833,22.47,153.82,153.73,2.8249]
[1729060424145,1.3444,153.81,153.73,1.3997]
[1729060424339,3.2518,153.77,153.73,4.6521]
[1729060424642,3.2518,153.77,153.73,1.3997]
[1729060425442,3.2515,153.78,153.75,3.2521]
[1729060427140,3.2511,153.8,153.77,3.2516]
[1729060428344,3.2511,153.8,153.76,3.2519]
[1729060429140,3.2511,153.8,153.73,1.3997]
[1729060429743,3.2509,153.81,153.76,3.2519]
[1729060429941,3.2509,153.81,153.75,5.38]
[1729060430745,3.2509,153.81,153.77,3.2515]
[1729060430960,3.2509,153.81,153.75,5.38]
[1729060431545,3.2507,153.82,153.78,3.2514]
[1729060432048,3.2507,153.82,153.75,19.43]
[1729060433257,3.2507,153.82,153.77,3.2517]
[1729060435945,19.43,153.85,153.75,22.682]
[1729060435946,3.2514,153.79,153.75,22.682]
[1729060436450,3.2514,153.79,153.75,19.43]
[1729060436652,3.2514,153.79,153.76,3.2519]
[1729060437238,3.2518,153.77,153.75,5.38]
[1729060437445,3.2518,153.77,153.73,10.0322]
[1729060437944,3.2518,153.77,153.73,8.6325]
[1729060438139,3.2521,153.76,153.72,4.7038]
[1729060438554,17.2956419,153.79,153.71,14.05]
[1729060438751,14.05,153.77,153.69,5.38]
[1729060438947,14.05,153.77,153.69,19.43]
[1729060439139,3.2521,153.76,153.71,3.2529]
[1729060439454,3.2521,153.76,153.69,19.43]
[1729060439646,1.3811,153.78,153.69,19.43]
[1729060440154,1.3811,153.78,153.69,22.73938397]
[1729060440344,3.2519,153.77,153.72,3.2526]
[1729060440851,3.2519,153.77,153.71,14.05]
[1729060441053,3.2519,153.77,153.72,3.2526]
[1729060441445,22.5756419,153.79,153.7,3.2531]
[1729060441652,22.5756419,153.79,153.69,19.43]
[1729060442152,14.05,153.77,153.69,5.38]
[1729060442950,3.2526,153.73,153.69,3.2533]
[1729060443950,14.05,153.74,153.67,5.28]
[1729060444356,14.05,153.74,153.67,19.33]
[1729060444357,3.2525,153.74,153.67,19.33]
[1729060444564,17.2956419,153.79,153.69,14.05]
[1729060444754,1.4045,153.8,153.71,14.05]
[1729060444959,1.4045,153.8,153.71,19.33]
[1729060445160,3.2519,153.77,153.73,3.2525]
[1729060446050,3.252,153.76,153.73,3.2525]
[1729060447356,3.2518,153.77,153.71,5.28]
[1729060447552,14.05,153.77,153.7,5.28]
[1729060447751,19.33,153.77,153.68,5.28]
[1729060447958,3.2528,153.72,153.68,8.5336]
[1729060448277,19.33,153.77,153.68,5.28]
[1729060449052,19.33,153.77,153.69,3.2534]
[1729060450062,14.05,153.77,153.68,5.28]
[1729060450263,14.05,153.77,153.72,3.2526]
[1729060450964,3.2525,153.74,153.7,3.2531]
[1729060452067,14.05,153.77,153.7,3.2531]
[1729060452261,3.2526,153.73,153.7,3.2531]
[1729060453059,17.33985035,153.79,153.7,3.25406636]
[1729060453266,3.24788549,153.79,153.71,14.05]
[1729060453462,3.24788549,153.79,153.72,5.28]
[1729060453665,3.2514,153.79,153.75,3.252]
[1729060454561,3.2517,153.77,153.73,3.2524]
[1729060458671,1.4045,153.8,153.73,14.05]
[1729060458966,123.13845499,153.84,153.78,14.05]
[1729060459171,5.97524532,153.87,153.79,14.05]
[1729060459477,11.25524532,153.87,153.79,14.05]
[1729060460063,3.2501,153.85,153.81,3.2508]
[1729060460269,11.25524532,153.87,153.81,3.2508]
[1729060460867,3.25,153.85,153.81,3.2508]
[1729060461465,25.30524532,153.87,153.77,19.33]
[1729060462170,3.2502,153.84,153.8,3.2511]
[1729060462670,3.2502,153.84,153.77,19.33]
[1729060462671,3.2505,153.83,153.79,3.2513]
[1729060463070,25.30524532,153.87,153.77,19.33]
[1729060463669,3.2502,153.84,153.8,3.2509]
[1729060463971,25.30524532,153.87,153.77,22.55094759]
[1729060464877,3.2501,153.85,153.81,3.2507]
[1729060465074,2.7762,153.87,153.77,22.55094759]
[1729060465372,1.3836,153.87,153.8,14.05]
[1729060465566,4.6333,153.87,153.82,3.2506]
[1729060466073,4.6333,153.87,153.8,14.05]
[1729060466471,4.6333,153.87,153.83,3.2504]
[1729060469770,18.62746983,153.87,153.77,5.28]
[1729060469975,14.05,153.85,153.75,19.27]
[1729060470171,14.05,153.83,153.73,18.207]
[1729060470369,3.2512,153.8,153.76,3.2517]
[1729060470570,14.05,153.83,153.75,5.22]
[1729060471082,14.05,153.83,153.77,3.2516]
[1729060471083,3.2509,153.81,153.77,3.2516]
[1729060471475,1.4406,153.84,153.75,5.22]
[1729060471683,1.4406,153.84,153.75,19.27]
[1729060471883,3.2505,153.83,153.79,3.2512]
[1729060472083,1.4406,153.84,153.75,19.27]
[1729060472772,18.62746983,153.87,153.77,14.05]
[1729060473079,18.62746983,153.87,153.78,3.19916769]
[1729060473279,18.62746983,153.87,153.77,14.05]
[1729060473280,3.2503,153.84,153.8,3.251]
[1729060473471,3.2503,153.84,153.79,5.22]
[1729060473676,14.05,153.85,153.79,5.22]
[1729060474476,3.2508,153.82,153.79,5.22]
[1729060476083,3.2508,153.82,153.79,8.4713]
[1729060477580,14.05,153.85,153.79,5.22]
[1729060477776,4.57746983,153.87,153.79,5.22]
[1729060478083,1.3836,153.87,153.79,5.22]
[1729060478487,3.2502,153.85,153.81,3.2507]
[1729060479886,3.2498,153.87,153.83,3.2503]
[1729060480075,3.2498,153.87,153.81,14.05]
[1729060480276,1.3619,153.9,153.81,14.05]
[1729060480480,3.2495,153.88,153.84,3.2501]
[1729060480677,1.3619,153.9,153.83,5.22]
[1729060480879,1.3619,153.9,153.83,19.27]
[1729060481086,5.22,153.91,153.86,3.2497]
[1729060481879,3.2489,153.91,153.87,3.2495]
[1729060482187,1.0,153.92,153.85,14.05]
[1729060482382,4.2486,153.92,153.88,3.2492]
[1729060485383,1.0,153.92,153.88,3.2492]
[1729060485584,3.2488,153.91,153.88,3.2492]
[1729060486085,1.0,153.92,153.88,3.2492]
[1729060486292,4.2487,153.92,153.88,3.2492]
[1729060487986,1.0,153.92,153.87,5.22]
[1729060488188,3.2489,153.91,153.87,5.22]
[1729060488979,3.2489,153.91,153.87,8.4695]
[1729060490086,1.0,153.92,153.87,5.22]
[1729060490288,3.2493,153.89,153.87,5.22]
[1729060491088,1.0,153.92,153.85,5.22]
[1729060491393,3.2489,153.91,153.85,5.22]
[1729060491893,3.2489,153.91,153.86,3.2497]
[1729060493487,1.0,153.92,153.85,19.27]
[1729060495508,3.2489,153.91,153.87,3.2496]
[1729060497503,1.0,153.92,153.85,19.27]
[1729060497504,1.0,153.92,153.9,17.2988]
[1729060497803,1.0,153.92,153.91,5.22]
[1729060498403,1.0,153.92,153.91,8.4688]
[1729060502309,1.0,153.92,153.91,5.22]
[1729060503914,1.0,153.92,153.89,3.249]
[1729060504211,1.0,153.92,153.9,5.2]
[1729060504703,1.0,153.92,153.86,4.168]
[1729060504904,1.0,153.92,153.89,5.2]
[1729060505104,1.0,153.92,153.86,2.8263]
[1729060505105,1.0,153.92,153.86,5.2]
[1729060505311,18.2895373,153.92,153.83,14.05]
[1729060505499,18.2895373,153.92,153.81,4.1319]
[1729060505500,14.05,153.9,153.81,18.1819]
[1729060505705,14.05,153.9,153.82,5.2]
[1729060505911,2.7843,153.91,153.82,5.2]
[1729060506210,2.7843,153.91,153.83,14.05]
[1729060506400,1.4169,153.91,153.83,14.05]
[1729060506603,1.0,153.92,153.83,14.05]
[1729060506907,1.0,153.92,153.87,14.05]
[1729060507102,1.0,153.92,153.89,14.05]
[1729060507315,1.0,153.96,153.91,14.05]
[1729060507507,1.0,153.96,153.95,14.05]
[1729060508403,1.0,153.96,153.93,3.2483]
[1729060509114,1.0,153.96,153.94,3.2481]
[1729060509304,1.0,153.96,153.92,19.25]
[1729060510300,1.0,153.96,153.93,5.2]
[1729060510715,1.0,153.96,153.92,5.2]
[1729060512217,1.0,153.96,153.93,14.05]
[1729060513108,1.0,153.96,153.94,3.248]
[1729060515119,4.2478,153.96,153.92,5.2]
[1729060515321,1.0,153.96,153.92,5.2]
[1729060515816,1.0,153.96,153.9,6.5596]
[1729060516228,1.0,153.96,153.93,3.2481]
[1729060516512,1.0,153.96,153.9,29.0096]
[1729060516712,4.2478,153.96,153.91,3.2486]
[1729060517414,1.0,153.96,153.93,3.2483]
[1729060518109,1.0,153.96,153.9,23.8096]
[1729060518418,1.0,153.96,153.91,5.2]
[1729060518813,1.0,153.96,153.87,3.2496]
[1729060519014,4.0905,153.95,153.89,5.2]
[1729060519314,3.23924814,153.94,153.89,5.2]
[1729060519514,3.2487,153.92,153.88,3.2494]
[1729060519710,3.23924814,153.94,153.88,5.2]
[1729060520214,4.0905,153.95,153.88,5.2]
[1729060520718,3.2485,153.93,153.89,3.249]
[1729060521620,1.388,153.95,153.88,8.39785061]
[1729060521916,1.0,153.96,153.88,8.39785061]
[1729060522123,1.0,153.96,153.89,1.3156]
[1729060522315,4.2477,153.96,153.91,3.2487]
[1729060522517,4.2477,153.96,153.89,1.3156]
[1729060522817,1.0,153.96,153.93,3.2483]
[1729060523119,1.0,153.96,153.93,8.4483]
[1729060524318,3.248,153.95,153.93,5.2]
[1729060524522,1.0,153.96,153.93,5.2]
[1729060525022,3.2481,153.94,153.93,5.2]
[1729060525212,3.2481,153.94,153.9,5.2]
[1729060525613,3.2481,153.94,153.9,8.449]
[1729060526308,1.0,153.96,153.9,5.2]
[1729060526509,3.2483,153.93,153.9,5.2]
[1729060527811,3.2483,153.93,153.89,8.4491]
[1729060528017,3.2488,153.92,153.89,5.2]
[1729060528613,3.2488,153.91,153.89,5.2]
[1729060528813,1.0,153.96,153.89,5.2]
[1729060529514,3.2489,153.91,153.89,5.2]
[1729060531822,3.31957892,153.94,153.89,5.2]
[1729060532022,1.0,153.96,153.89,5.2]
[1729060532825,3.2483,153.94,153.9,3.2488]
[1729060534123,1.0,153.96,153.89,5.2]
[1729060534332,3.19254012,153.95,153.89,5.2]
[1729060534830,3.2487,153.92,153.89,5.2]
[1729060538729,1.0,153.96,153.91,14.04]
[1729060538923,1.0,153.96,153.93,14.04]
[1729060539124,1.0,153.96,153.93,19.32]
[1729060539334,1.0,153.96,153.95,17.2879]
[1729060539530,1.0,154.0,153.97,14.04]
[1729060539825,1.0,154.0,153.97,19.32]
[1729060540330,1.0,154.0,153.99,14.04]
[1729060540630,1.0,154.0,153.97,19.32]
[1729060540830,1.0,154.0,153.98,3.2473]
[1729060541025,1.0,154.0,153.97,19.32]
[1729060541227,1.0,154.0,153.98,3.2471]
[1729060541425,1.0,154.0,153.97,19.32]
[1729060542037,1.0,154.0,153.99,3.2471]